[Event "Late-Titled-Tuesday-Blitz-March-12-2024"]
[Site "Chess.com"]
[Date "2024.03.12"]
[Round "11"]
[White "BeanScreen"]
[Black "Herman-NY"]
[Result "1-0"]
[WhiteElo "2717"]
[BlackElo "2543"]
[TimeControl "180+1"]
[EndTime "16:03:33 PDT"]
[Termination "BeanScreen won on time"]

1. e4 {[%clk 0:03:00.9]} 1... e5 {[%clk 0:02:59.5]} 2. Nf3 {[%clk 0:03:00.9]}
2... Nc6 {[%clk 0:02:59.7]} 3. Bc4 {[%clk 0:03:01.6]} 3... Nf6 {[%clk
0:02:59.7]} 4. d3 {[%clk 0:03:02.2]} 4... Be7 {[%clk 0:02:59.6]} 5. O-O {[%clk
0:03:01.9]} 5... O-O {[%clk 0:02:59.9]} 6. Re1 {[%clk 0:03:02.7]} 6... d6 {[%clk
0:03:00.1]} 7. a4 {[%clk 0:03:02.6]} 7... a5 {[%clk 0:03:00.6]} 8. h3 {[%clk
0:02:58.5]} 8... Be6 {[%clk 0:03:00.6]} 9. Bxe6 {[%clk 0:02:54.4]} 9... fxe6
{[%clk 0:03:01.5]} 10. c3 {[%clk 0:02:54.8]} 10... h6 {[%clk 0:02:48.6]} 11.
Nbd2 {[%clk 0:02:55.3]} 11... Qe8 {[%clk 0:02:33.7]} 12. Nf1 {[%clk 0:02:54.2]}
12... Nh5 {[%clk 0:02:28.7]} 13. d4 {[%clk 0:02:50]} 13... Qg6 {[%clk
0:02:19.5]} 14. N1h2 {[%clk 0:02:47.5]} 14... exd4 {[%clk 0:01:21.3]} 15. cxd4
{[%clk 0:02:48.4]} 15... Rf7 {[%clk 0:01:20.8]} 16. Kh1 {[%clk 0:02:45.9]} 16...
Raf8 {[%clk 0:01:20.2]} 17. g3 {[%clk 0:02:30.3]} 17... Nxg3+ {[%clk 0:00:35.2]}
18. fxg3 {[%clk 0:02:30.1]} 18... Qxg3 {[%clk 0:00:36.1]} 19. Ra3 {[%clk
0:01:59.8]} 19... Bh4 {[%clk 0:00:15]} 20. Rg1 {[%clk 0:01:51.2]} 20... Qxh3
{[%clk 0:00:15.4]} 21. Ng5 {[%clk 0:01:44.5]} 21... Qxh2+ {[%clk 0:00:05.3]} 22.
Kxh2 {[%clk 0:01:44.1]} 22... hxg5 {[%clk 0:00:05.7]} 23. Rg2 {[%clk 0:01:05.3]}
23... e5 {[%clk 0:00:05.9]} 24. Bxg5 {[%clk 0:00:53.1]} 24... Bxg5 {[%clk
0:00:05.9]} 25. Rxg5 {[%clk 0:00:54]} 25... Nxd4 {[%clk 0:00:06.6]} 26. Rgg3
{[%clk 0:00:34.3]} 26... Rf2+ {[%clk 0:00:03.6]} 27. Rg2 {[%clk 0:00:34.4]}
27... R2f4 {[%clk 0:00:03.5]} 28. Rh3 {[%clk 0:00:18.3]} 1-0

[Event "Late-Titled-Tuesday-Blitz-March-12-2024"]
[Site "Chess.com"]
[Date "2024.03.12"]
[Round "11"]
[White "Zampronha1971"]
[Black "Kavyev_Ruslan"]
[Result "0-1"]
[WhiteElo "2316"]
[BlackElo "2466"]
[TimeControl "180+1"]
[EndTime "16:03:33 PDT"]
[Termination "Kavyev_Ruslan won by resignation"]

1. e4 {[%clk 0:03:00.9]} 1... c6 {[%clk 0:03:00.3]} 2. d4 {[%clk 0:02:57.2]}
2... d5 {[%clk 0:03:00.6]} 3. e5 {[%clk 0:02:57.4]} 3... Bf5 {[%clk 0:03:00]} 4.
Nc3 {[%clk 0:02:56.7]} 4... e6 {[%clk 0:02:53.9]} 5. g4 {[%clk 0:02:57.2]} 5...
Bg6 {[%clk 0:02:53.6]} 6. Nge2 {[%clk 0:02:57.6]} 6... c5 {[%clk 0:02:47]} 7. h4
{[%clk 0:02:56.9]} 7... cxd4 {[%clk 0:02:45.4]} 8. Nxd4 {[%clk 0:02:56.4]} 8...
h5 {[%clk 0:02:42.8]} 9. Bb5+ {[%clk 0:02:09.4]} 9... Nd7 {[%clk 0:02:41.2]} 10.
f4 {[%clk 0:02:09.7]} 10... hxg4 {[%clk 0:02:35.1]} 11. f5 {[%clk 0:02:06.5]}
11... Bxf5 {[%clk 0:02:28.9]} 12. Nxf5 {[%clk 0:02:05.2]} 12... exf5 {[%clk
0:02:29.4]} 13. Qxd5 {[%clk 0:02:03.6]} 13... Ne7 {[%clk 0:02:19.4]} 14. Qxb7
{[%clk 0:02:02.7]} 14... Rc8 {[%clk 0:02:07.7]} 15. Bg5 {[%clk 0:02:00.9]} 15...
Rc7 {[%clk 0:01:59.1]} 16. Qa6 {[%clk 0:01:53.6]} 16... f6 {[%clk 0:01:27.7]}
17. exf6 {[%clk 0:01:42.2]} 17... gxf6 {[%clk 0:01:26.8]} 18. Bxf6 {[%clk
0:01:34]} 18... Rg8 {[%clk 0:01:26.9]} 19. O-O-O {[%clk 0:01:33.3]} 19... Kf7
{[%clk 0:01:21.9]} 20. Bg5 {[%clk 0:01:19]} 20... Rg6 {[%clk 0:01:11.9]} 21. Qa4
{[%clk 0:01:07.9]} 21... Bg7 {[%clk 0:00:56.6]} 22. Bxd7 {[%clk 0:01:05.8]}
22... Qh8 {[%clk 0:00:40.6]} 23. Bxe7 {[%clk 0:00:59.4]} 23... Kxe7 {[%clk
0:00:39.2]} 24. Nd5+ {[%clk 0:00:50.9]} 24... Kd8 {[%clk 0:00:31.1]} 25. Nxc7
{[%clk 0:00:45.5]} 25... Bxb2+ {[%clk 0:00:30.2]} 26. Kb1 {[%clk 0:00:45.6]}
26... Kxc7 {[%clk 0:00:22.7]} 27. Qc4+ {[%clk 0:00:33]} 27... Kb8 {[%clk
0:00:13.9]} 28. Ba4 {[%clk 0:00:31.2]} 28... Rb6 {[%clk 0:00:12.4]} 29. Bb3
{[%clk 0:00:31.3]} 29... Ba3 {[%clk 0:00:11.6]} 30. c3 {[%clk 0:00:31.4]} 30...
Rb7 {[%clk 0:00:08.2]} 31. Qg8+ {[%clk 0:00:31.6]} 31... Qxg8 {[%clk 0:00:07.4]}
32. Rd5 {[%clk 0:00:26.1]} 32... Rxb3+ {[%clk 0:00:06.9]} 0-1

[Event "Late-Titled-Tuesday-Blitz-March-12-2024"]
[Site "Chess.com"]
[Date "2024.03.12"]
[Round "11"]
[White "Alexei_Gubajdullin"]
[Black "Machidon"]
[Result "1-0"]
[WhiteElo "2663"]
[BlackElo "2519"]
[TimeControl "180+1"]
[EndTime "16:03:37 PDT"]
[Termination "Alexei_Gubajdullin won by checkmate"]

1. d4 {[%clk 0:02:58.9]} 1... Nf6 {[%clk 0:02:59.1]} 2. Nf3 {[%clk 0:02:58.7]}
2... e6 {[%clk 0:02:59.5]} 3. Bf4 {[%clk 0:02:59.2]} 3... c5 {[%clk 0:02:59.1]}
4. e3 {[%clk 0:02:59.3]} 4... b6 {[%clk 0:02:59.7]} 5. Be2 {[%clk 0:02:59.4]}
5... Bb7 {[%clk 0:03:00.2]} 6. O-O {[%clk 0:02:59.4]} 6... Be7 {[%clk
0:03:00.9]} 7. a4 {[%clk 0:02:59.1]} 7... O-O {[%clk 0:02:52.2]} 8. a5 {[%clk
0:02:58.9]} 8... bxa5 {[%clk 0:02:52.8]} 9. Nbd2 {[%clk 0:02:58.6]} 9... cxd4
{[%clk 0:02:41.8]} 10. exd4 {[%clk 0:02:58.3]} 10... Nc6 {[%clk 0:02:39.9]} 11.
Nc4 {[%clk 0:02:40.1]} 11... d5 {[%clk 0:02:26.4]} 12. Nce5 {[%clk 0:02:39.6]}
12... Qb6 {[%clk 0:02:26.9]} 13. Qd3 {[%clk 0:02:12.8]} 13... Rac8 {[%clk
0:01:40.2]} 14. c3 {[%clk 0:02:12.1]} 14... Ne4 {[%clk 0:01:35.6]} 15. Nd7
{[%clk 0:02:08.5]} 15... Qd8 {[%clk 0:01:29.1]} 16. Nxf8 {[%clk 0:02:07.4]}
16... Bxf8 {[%clk 0:01:30]} 17. Ne5 {[%clk 0:02:05.3]} 17... Nxe5 {[%clk
0:01:12.3]} 18. Bxe5 {[%clk 0:02:04.5]} 18... Qb6 {[%clk 0:01:12.8]} 19. Ra2
{[%clk 0:02:00.9]} 19... Bc6 {[%clk 0:01:10.3]} 20. Qa6 {[%clk 0:01:52]} 20...
Re8 {[%clk 0:00:43.2]} 21. Qxa5 {[%clk 0:01:50.4]} 21... Qb3 {[%clk 0:00:42.5]}
22. Bh5 {[%clk 0:01:16.6]} 22... Bb5 {[%clk 0:00:31.7]} 23. Re1 {[%clk 0:00:57]}
23... Bc4 {[%clk 0:00:27.7]} 24. Raa1 {[%clk 0:00:43.6]} 24... Qxb2 {[%clk
0:00:27.9]} 25. Bg3 {[%clk 0:00:38.9]} 25... a6 {[%clk 0:00:22.6]} 26. Qc7
{[%clk 0:00:37.6]} 26... g6 {[%clk 0:00:22.6]} 27. Bf3 {[%clk 0:00:34.3]} 27...
Nxc3 {[%clk 0:00:20.4]} 28. Be5 {[%clk 0:00:30.9]} 28... Qb5 {[%clk 0:00:16.8]}
29. h4 {[%clk 0:00:27.4]} 29... Bb4 {[%clk 0:00:15]} 30. h5 {[%clk 0:00:26.7]}
30... Ne4 {[%clk 0:00:13.6]} 31. Bxe4 {[%clk 0:00:25.2]} 31... Bxe1 {[%clk
0:00:13.2]} 32. hxg6 {[%clk 0:00:23.4]} 32... hxg6 {[%clk 0:00:13.3]} 33. Bxg6
{[%clk 0:00:23.2]} 33... Bb4 {[%clk 0:00:10.5]} 34. Qxf7# {[%clk 0:00:22]} 1-0

[Event "Late-Titled-Tuesday-Blitz-March-12-2024"]
[Site "Chess.com"]
[Date "2024.03.12"]
[Round "11"]
[White "RantomOpening"]
[Black "nindjaxx8"]
[Result "0-1"]
[WhiteElo "2590"]
[BlackElo "2692"]
[TimeControl "180+1"]
[EndTime "16:03:39 PDT"]
[Termination "nindjaxx8 won by checkmate"]

1. e4 {[%clk 0:03:00]} 1... e6 {[%clk 0:02:59.9]} 2. Qe2 {[%clk 0:02:57.9]} 2...
c5 {[%clk 0:02:46.2]} 3. Nf3 {[%clk 0:02:57.3]} 3... Nc6 {[%clk 0:02:46.2]} 4.
d3 {[%clk 0:02:57.4]} 4... Nf6 {[%clk 0:02:45.2]} 5. Nbd2 {[%clk 0:02:56.7]}
5... d5 {[%clk 0:02:44.3]} 6. g3 {[%clk 0:02:56.6]} 6... dxe4 {[%clk 0:02:41.4]}
7. dxe4 {[%clk 0:02:53.4]} 7... Be7 {[%clk 0:02:41.9]} 8. Bg2 {[%clk 0:02:53.4]}
8... O-O {[%clk 0:02:40.6]} 9. O-O {[%clk 0:02:53.7]} 9... Qc7 {[%clk
0:02:19.1]} 10. e5 {[%clk 0:02:50.4]} 10... Nd5 {[%clk 0:02:15.7]} 11. c4 {[%clk
0:02:49.6]} 11... Nb6 {[%clk 0:02:07.5]} 12. b3 {[%clk 0:02:49.3]} 12... Rd8
{[%clk 0:01:56.3]} 13. Bb2 {[%clk 0:02:48.5]} 13... Bd7 {[%clk 0:01:56.5]} 14.
Ne4 {[%clk 0:02:47.5]} 14... Be8 {[%clk 0:01:55]} 15. Rfd1 {[%clk 0:02:46.9]}
15... a5 {[%clk 0:01:37.1]} 16. Qe3 {[%clk 0:02:45.6]} 16... Nb4 {[%clk
0:01:35.1]} 17. Nf6+ {[%clk 0:02:37.5]} 17... gxf6 {[%clk 0:01:23.6]} 18. exf6
{[%clk 0:02:38.4]} 18... Bf8 {[%clk 0:01:23.6]} 19. Qg5+ {[%clk 0:02:38.3]}
19... Kh8 {[%clk 0:01:23.8]} 20. Ne5 {[%clk 0:02:32.5]} 20... Rxd1+ {[%clk
0:01:17.6]} 21. Rxd1 {[%clk 0:02:33.4]} 21... Rd8 {[%clk 0:01:17.5]} 22. Rxd8
{[%clk 0:02:28.7]} 22... Qxd8 {[%clk 0:01:18.4]} 23. Ng4 {[%clk 0:02:28.5]}
23... Qd1+ {[%clk 0:00:22.2]} 24. Bf1 {[%clk 0:02:27.8]} 24... h5 {[%clk
0:00:15.1]} 25. Nh6 {[%clk 0:02:18.9]} 25... Kh7 {[%clk 0:00:10.3]} 26. Ng8
{[%clk 0:01:54.2]} 26... Qg4 {[%clk 0:00:06.1]} 27. Qxg4 {[%clk 0:01:49.6]}
27... hxg4 {[%clk 0:00:07]} 28. Ne7 {[%clk 0:01:50.5]} 28... Bxe7 {[%clk
0:00:06.9]} 29. fxe7 {[%clk 0:01:51.2]} 29... Nc8 {[%clk 0:00:07.4]} 30. Bf6
{[%clk 0:01:51.1]} 30... Kg6 {[%clk 0:00:07.8]} 31. Bh4 {[%clk 0:01:51]} 31...
f6 {[%clk 0:00:07.2]} 32. Bg2 {[%clk 0:01:51.9]} 32... Nxe7 {[%clk 0:00:06.9]}
33. Bxb7 {[%clk 0:01:52.3]} 33... Nf5 {[%clk 0:00:06.3]} 34. Be4 {[%clk
0:01:47.5]} 34... Nxa2 {[%clk 0:00:06.3]} 35. f3 {[%clk 0:01:44.9]} 35... Nc3
{[%clk 0:00:05.7]} 36. Bd3 {[%clk 0:01:44.6]} 36... Kf7 {[%clk 0:00:03.7]} 37.
fxg4 {[%clk 0:01:44.2]} 37... Nxh4 {[%clk 0:00:04.1]} 38. gxh4 {[%clk
0:01:45.1]} 38... Na2 {[%clk 0:00:03.4]} 39. Kf2 {[%clk 0:01:44.6]} 39... Bc6
{[%clk 0:00:03.5]} 40. Bb1 {[%clk 0:01:45.5]} 40... Nb4 {[%clk 0:00:03.1]} 41.
h5 {[%clk 0:01:45.8]} 41... Kg7 {[%clk 0:00:03.3]} 42. h4 {[%clk 0:01:45.5]}
42... Kh6 {[%clk 0:00:03.7]} 43. Kg3 {[%clk 0:01:45.3]} 43... e5 {[%clk
0:00:02.6]} 44. Kf2 {[%clk 0:01:43.4]} 44... Bd7 {[%clk 0:00:02.8]} 45. Kf3
{[%clk 0:01:42.3]} 45... Be6 {[%clk 0:00:02.8]} 46. Be4 {[%clk 0:01:41.6]} 46...
Na2 {[%clk 0:00:02.4]} 47. Bb1 {[%clk 0:01:41.4]} 47... Nb4 {[%clk 0:00:03]} 48.
Be4 {[%clk 0:01:42.3]} 48... Bd7 {[%clk 0:00:02.4]} 49. Bb7 {[%clk 0:01:40.9]}
49... Nc6 {[%clk 0:00:02.6]} 50. Ba8 {[%clk 0:01:40.1]} 50... Nd4+ {[%clk
0:00:02.9]} 51. Ke4 {[%clk 0:01:40.9]} 51... Bxg4 {[%clk 0:00:03.2]} 52. Kd5
{[%clk 0:01:41.8]} 52... Bf3+ {[%clk 0:00:03.7]} 53. Kxc5 {[%clk 0:01:41.7]}
53... Bxa8 {[%clk 0:00:04.6]} 54. b4 {[%clk 0:01:42.5]} 54... axb4 {[%clk
0:00:04.7]} 55. Kxb4 {[%clk 0:01:43.3]} 55... e4 {[%clk 0:00:05.4]} 56. c5
{[%clk 0:01:44.2]} 56... e3 {[%clk 0:00:05.7]} 57. Kc3 {[%clk 0:01:45.1]} 57...
e2 {[%clk 0:00:05.8]} 58. Kd2 {[%clk 0:01:46]} 58... Kxh5 {[%clk 0:00:06.2]} 59.
Ke1 {[%clk 0:01:46.9]} 59... Kxh4 {[%clk 0:00:06.8]} 60. c6 {[%clk 0:01:47.8]}
60... Bxc6 {[%clk 0:00:06.4]} 61. Kf2 {[%clk 0:01:48.7]} 61... Kg4 {[%clk
0:00:06.6]} 62. Ke1 {[%clk 0:01:49.6]} 62... Kg3 {[%clk 0:00:07.3]} 63. Kd2
{[%clk 0:01:50.2]} 63... Kf2 {[%clk 0:00:07.8]} 64. Kd3 {[%clk 0:01:50.9]} 64...
e1=Q {[%clk 0:00:07.9]} 65. Kc4 {[%clk 0:01:51.8]} 65... Qe3 {[%clk 0:00:07.1]}
66. Kb4 {[%clk 0:01:52.7]} 66... Qd3 {[%clk 0:00:06.6]} 67. Kc5 {[%clk
0:01:53.6]} 67... Qb5+ {[%clk 0:00:06.5]} 68. Kd6 {[%clk 0:01:52.9]} 68... f5
{[%clk 0:00:07.1]} 69. Kc7 {[%clk 0:01:53.8]} 69... f4 {[%clk 0:00:07.4]} 70.
Kd6 {[%clk 0:01:54.7]} 70... f3 {[%clk 0:00:07.8]} 71. Ke7 {[%clk 0:01:55.6]}
71... Ne6 {[%clk 0:00:07.8]} 72. Kd6 {[%clk 0:01:55.2]} 72... Qd5+ {[%clk
0:00:07.3]} 73. Ke7 {[%clk 0:01:56.1]} 73... Qd7+ {[%clk 0:00:07.4]} 74. Kf6
{[%clk 0:01:57]} 74... Ke2 {[%clk 0:00:07.2]} 75. Ke5 {[%clk 0:01:57.9]} 75...
f2 {[%clk 0:00:07.7]} 76. Kf6 {[%clk 0:01:58.4]} 76... f1=Q+ {[%clk 0:00:08.1]}
77. Ke5 {[%clk 0:01:59.3]} 77... Qf4# {[%clk 0:00:08.1]} 0-1

[Event "Late-Titled-Tuesday-Blitz-March-12-2024"]
[Site "Chess.com"]
[Date "2024.03.12"]
[Round "11"]
[White "Bongcloudtransvestit"]
[Black "simaopdias"]
[Result "0-1"]
[WhiteElo "2420"]
[BlackElo "2278"]
[TimeControl "180+1"]
[EndTime "16:03:44 PDT"]
[Termination "simaopdias won on time"]

1. d4 {[%clk 0:02:59.2]} 1... d5 {[%clk 0:02:59.5]} 2. c4 {[%clk 0:02:57.6]}
2... e6 {[%clk 0:02:59.8]} 3. Nf3 {[%clk 0:02:56.2]} 3... Be7 {[%clk 0:03:00.3]}
4. Nc3 {[%clk 0:02:53]} 4... Nf6 {[%clk 0:03:00.9]} 5. Bg5 {[%clk 0:02:49]} 5...
h6 {[%clk 0:03:01]} 6. Bxf6 {[%clk 0:02:46.5]} 6... Bxf6 {[%clk 0:03:01]} 7. Qc2
{[%clk 0:02:46.6]} 7... O-O {[%clk 0:03:01.1]} 8. e3 {[%clk 0:02:44.7]} 8... b6
{[%clk 0:03:01.3]} 9. h4 {[%clk 0:02:42.8]} 9... Bb7 {[%clk 0:03:00.9]} 10. cxd5
{[%clk 0:02:40.8]} 10... exd5 {[%clk 0:02:59.4]} 11. g4 {[%clk 0:02:40.4]} 11...
Be7 {[%clk 0:02:57]} 12. g5 {[%clk 0:01:43.8]} 12... h5 {[%clk 0:02:55.4]} 13.
g6 {[%clk 0:01:40.9]} 13... Qe8 {[%clk 0:02:41.9]} 14. Bd3 {[%clk 0:01:18.4]}
14... Nd7 {[%clk 0:02:20.9]} 15. Ng5 {[%clk 0:01:13.9]} 15... c5 {[%clk
0:01:46]} 16. gxf7+ {[%clk 0:01:06.2]} 16... Rxf7 {[%clk 0:01:45.1]} 17. Bh7+
{[%clk 0:00:49.3]} 17... Kh8 {[%clk 0:01:33.7]} 18. Bg6 {[%clk 0:00:48.4]} 18...
Bxg5 {[%clk 0:01:02.1]} 19. hxg5 {[%clk 0:00:48.1]} 19... cxd4 {[%clk
0:00:53.9]} 20. Qe2 {[%clk 0:00:24.4]} 20... Kg8 {[%clk 0:00:25.2]} 21. Rxh5
{[%clk 0:00:22]} 21... dxe3 {[%clk 0:00:22.8]} 22. O-O-O {[%clk 0:00:12.7]}
22... exf2 {[%clk 0:00:21.3]} 23. Qg4 {[%clk 0:00:04.4]} 23... Qe3+ {[%clk
0:00:20.6]} 24. Kb1 {[%clk 0:00:03.2]} 24... Rf4 {[%clk 0:00:16.7]} 0-1

[Event "Late-Titled-Tuesday-Blitz-March-12-2024"]
[Site "Chess.com"]
[Date "2024.03.12"]
[Round "11"]
[White "KorolDimitriy75"]
[Black "grandcoach"]
[Result "1-0"]
[WhiteElo "2420"]
[BlackElo "2230"]
[TimeControl "180+1"]
[EndTime "16:03:47 PDT"]
[Termination "KorolDimitriy75 won on time"]

1. d4 {[%clk 0:03:00.9]} 1... Nf6 {[%clk 0:02:59.1]} 2. c4 {[%clk 0:03:01.1]}
2... e6 {[%clk 0:02:58.5]} 3. Nc3 {[%clk 0:03:01.3]} 3... Bb4 {[%clk 0:02:59]}
4. Qc2 {[%clk 0:03:01.3]} 4... b6 {[%clk 0:02:52.1]} 5. e4 {[%clk 0:03:00.4]}
5... Bb7 {[%clk 0:02:47]} 6. e5 {[%clk 0:02:59]} 6... Ne4 {[%clk 0:02:46.8]} 7.
Nf3 {[%clk 0:02:59]} 7... d5 {[%clk 0:02:30.1]} 8. Bd3 {[%clk 0:02:15.9]} 8...
c5 {[%clk 0:02:27.6]} 9. O-O {[%clk 0:02:05.6]} 9... Bxc3 {[%clk 0:01:35.1]} 10.
bxc3 {[%clk 0:02:05.6]} 10... Nd7 {[%clk 0:01:26.5]} 11. cxd5 {[%clk 0:01:35.2]}
11... exd5 {[%clk 0:01:24.8]} 12. c4 {[%clk 0:01:34.3]} 12... cxd4 {[%clk
0:00:54.1]} 13. cxd5 {[%clk 0:01:26.2]} 13... Rc8 {[%clk 0:00:53.1]} 14. Qa4
{[%clk 0:01:16.8]} 14... Bxd5 {[%clk 0:00:37.9]} 15. Qxd4 {[%clk 0:00:17.6]}
15... Ndc5 {[%clk 0:00:34.2]} 16. Rd1 {[%clk 0:00:11.4]} 16... O-O {[%clk
0:00:28.7]} 17. Bf1 {[%clk 0:00:07.8]} 17... Bb7 {[%clk 0:00:21]} 18. Be3 {[%clk
0:00:07.8]} 18... Qxd4 {[%clk 0:00:17.8]} 19. Nxd4 {[%clk 0:00:08.7]} 19... Nc3
{[%clk 0:00:15]} 20. Rdc1 {[%clk 0:00:08.4]} 20... Nd5 {[%clk 0:00:14]} 21. Bg5
{[%clk 0:00:07.5]} 21... f6 {[%clk 0:00:12.1]} 22. exf6 {[%clk 0:00:07.3]} 22...
gxf6 {[%clk 0:00:12.1]} 23. Bh4 {[%clk 0:00:07]} 23... Kf7 {[%clk 0:00:10.8]}
24. Nb5 {[%clk 0:00:06.8]} 24... Rcd8 {[%clk 0:00:09]} 25. Nxa7 {[%clk
0:00:06.7]} 25... Rg8 {[%clk 0:00:07.4]} 26. Bg3 {[%clk 0:00:05.9]} 26... f5
{[%clk 0:00:05.5]} 27. Bc4 {[%clk 0:00:06.1]} 27... f4 {[%clk 0:00:05.4]} 28.
Bxf4 {[%clk 0:00:05.6]} 1-0

[Event "Late-Titled-Tuesday-Blitz-March-12-2024"]
[Site "Chess.com"]
[Date "2024.03.12"]
[Round "11"]
[White "crazyluzhinTh3"]
[Black "scarabee43"]
[Result "0-1"]
[WhiteElo "2568"]
[BlackElo "2813"]
[TimeControl "180+1"]
[EndTime "16:03:50 PDT"]
[Termination "scarabee43 won by resignation"]

1. e4 {[%clk 0:02:55.4]} 1... c5 {[%clk 0:02:59.5]} 2. Nf3 {[%clk 0:02:54.6]}
2... e6 {[%clk 0:02:59.9]} 3. g3 {[%clk 0:02:53.9]} 3... Nc6 {[%clk 0:02:59.2]}
4. Bg2 {[%clk 0:02:53.9]} 4... Nf6 {[%clk 0:02:59.7]} 5. Qe2 {[%clk 0:02:53.2]}
5... d6 {[%clk 0:02:50.4]} 6. O-O {[%clk 0:02:52.7]} 6... g6 {[%clk 0:02:50.1]}
7. c3 {[%clk 0:02:52.6]} 7... Bg7 {[%clk 0:02:50.6]} 8. d4 {[%clk 0:02:52.5]}
8... O-O {[%clk 0:02:49.4]} 9. dxc5 {[%clk 0:02:52.2]} 9... dxc5 {[%clk
0:02:49.7]} 10. e5 {[%clk 0:02:52.8]} 10... Nd7 {[%clk 0:02:45.8]} 11. Bf4
{[%clk 0:02:52.3]} 11... Qc7 {[%clk 0:02:42.2]} 12. Re1 {[%clk 0:02:51.5]} 12...
b6 {[%clk 0:02:40.8]} 13. a4 {[%clk 0:02:45.7]} 13... Bb7 {[%clk 0:02:39]} 14.
Na3 {[%clk 0:02:45.7]} 14... a6 {[%clk 0:02:35.2]} 15. h4 {[%clk 0:02:40.8]}
15... Ne7 {[%clk 0:02:34.5]} 16. Nc4 {[%clk 0:02:33.1]} 16... Bc6 {[%clk
0:02:28.2]} 17. Nd6 {[%clk 0:02:11.8]} 17... Nd5 {[%clk 0:02:28.7]} 18. c4
{[%clk 0:01:53.2]} 18... Nxf4 {[%clk 0:02:26.1]} 19. gxf4 {[%clk 0:01:54.1]}
19... f6 {[%clk 0:02:06.2]} 20. Bh3 {[%clk 0:01:06.3]} 20... fxe5 {[%clk
0:02:02.8]} 21. Bxe6+ {[%clk 0:01:06]} 21... Kh8 {[%clk 0:02:03.4]} 22. Nf7+
{[%clk 0:01:03.8]} 22... Rxf7 {[%clk 0:02:03.8]} 23. Bxf7 {[%clk 0:01:04.7]}
23... e4 {[%clk 0:02:02.6]} 24. Ng5 {[%clk 0:01:02.5]} 24... Qxf4 {[%clk
0:02:00.4]} 25. Bd5 {[%clk 0:00:45.9]} 25... Bxd5 {[%clk 0:01:59.6]} 26. cxd5
{[%clk 0:00:46.8]} 26... Bd4 {[%clk 0:01:32.1]} 27. Ne6 {[%clk 0:00:39.3]} 27...
Qg3+ {[%clk 0:01:31.6]} 28. Kf1 {[%clk 0:00:37.9]} 28... Qh3+ {[%clk 0:01:30.6]}
29. Kg1 {[%clk 0:00:38.3]} 29... Ne5 {[%clk 0:01:05.2]} 30. Ra3 {[%clk
0:00:20.2]} 30... Nf3+ {[%clk 0:01:05.5]} 31. Rxf3 {[%clk 0:00:20.2]} 31... exf3
{[%clk 0:01:06.1]} 32. Qf1 {[%clk 0:00:18.2]} 32... Qg3+ {[%clk 0:01:06.8]} 33.
Kh1 {[%clk 0:00:18.7]} 33... Qxh4+ {[%clk 0:01:07.5]} 34. Kg1 {[%clk 0:00:19]}
34... Qg4+ {[%clk 0:01:04.9]} 35. Kh1 {[%clk 0:00:19.3]} 35... Qh5+ {[%clk
0:01:05]} 36. Kg1 {[%clk 0:00:18.4]} 36... Be5 {[%clk 0:01:03.4]} 37. Rxe5
{[%clk 0:00:13.7]} 37... Qxe5 {[%clk 0:01:04]} 38. Qc4 {[%clk 0:00:14.4]} 38...
Re8 {[%clk 0:00:57.2]} 39. Qh4 {[%clk 0:00:10.5]} 39... Kg8 {[%clk 0:00:54.4]}
40. Ng5 {[%clk 0:00:08.4]} 40... h5 {[%clk 0:00:51.1]} 41. Nxf3 {[%clk
0:00:07.8]} 41... Qxd5 {[%clk 0:00:50.9]} 42. Qg3 {[%clk 0:00:07.2]} 42... Qf5
{[%clk 0:00:47.7]} 43. Nh4 {[%clk 0:00:07]} 43... Qg4 {[%clk 0:00:47.4]} 44.
Qxg4 {[%clk 0:00:07.6]} 44... hxg4 {[%clk 0:00:48]} 45. Nxg6 {[%clk 0:00:08.5]}
45... Re4 {[%clk 0:00:48.3]} 46. a5 {[%clk 0:00:08.4]} 46... bxa5 {[%clk
0:00:48.4]} 47. Nh4 {[%clk 0:00:08.1]} 47... a4 {[%clk 0:00:48.4]} 48. Nf5
{[%clk 0:00:09]} 48... Re2 {[%clk 0:00:48.6]} 49. Nh6+ {[%clk 0:00:07.1]} 49...
Kg7 {[%clk 0:00:48.3]} 50. Nxg4 {[%clk 0:00:08]} 50... Rxb2 {[%clk 0:00:48.6]}
51. Ne3 {[%clk 0:00:08.4]} 51... a3 {[%clk 0:00:49.2]} 0-1

[Event "Late-Titled-Tuesday-Blitz-March-12-2024"]
[Site "Chess.com"]
[Date "2024.03.12"]
[Round "11"]
[White "Rinqed222"]
[Black "HaryKane"]
[Result "0-1"]
[WhiteElo "2398"]
[BlackElo "2608"]
[TimeControl "180+1"]
[EndTime "16:03:53 PDT"]
[Termination "HaryKane won on time"]

1. e4 {[%clk 0:03:00.9]} 1... g6 {[%clk 0:02:58.2]} 2. d4 {[%clk 0:02:58.6]}
2... Bg7 {[%clk 0:02:58.4]} 3. Nc3 {[%clk 0:02:58.3]} 3... d6 {[%clk 0:02:58.4]}
4. Be3 {[%clk 0:02:58]} 4... c6 {[%clk 0:02:55.5]} 5. Qd2 {[%clk 0:02:53.4]}
5... b5 {[%clk 0:02:53.3]} 6. a3 {[%clk 0:02:36.2]} 6... a5 {[%clk 0:02:52.4]}
7. f3 {[%clk 0:02:20.9]} 7... Bb7 {[%clk 0:02:44.7]} 8. Nge2 {[%clk 0:02:14.5]}
8... Nd7 {[%clk 0:02:39.8]} 9. g3 {[%clk 0:02:05.7]} 9... h5 {[%clk 0:02:33.6]}
10. Bg2 {[%clk 0:02:04.9]} 10... h4 {[%clk 0:02:28.4]} 11. O-O {[%clk
0:02:00.8]} 11... hxg3 {[%clk 0:02:27.2]} 12. hxg3 {[%clk 0:02:00.8]} 12... Ngf6
{[%clk 0:02:18.5]} 13. b4 {[%clk 0:01:45.9]} 13... O-O {[%clk 0:02:00.9]} 14.
Bh6 {[%clk 0:01:39.9]} 14... Nb6 {[%clk 0:01:48.7]} 15. Bxg7 {[%clk 0:01:38.9]}
15... Kxg7 {[%clk 0:01:48.1]} 16. Kf2 {[%clk 0:01:11.2]} 16... Nc4 {[%clk
0:01:46.6]} 17. Qd3 {[%clk 0:01:11.4]} 17... e5 {[%clk 0:01:13.3]} 18. bxa5
{[%clk 0:00:33.8]} 18... Qxa5 {[%clk 0:01:10.2]} 19. a4 {[%clk 0:00:31]} 19...
d5 {[%clk 0:00:56.6]} 20. axb5 {[%clk 0:00:24]} 20... Qxa1 {[%clk 0:00:51.6]}
21. Rxa1 {[%clk 0:00:24.9]} 21... Rxa1 {[%clk 0:00:51.5]} 22. bxc6 {[%clk
0:00:24.2]} 22... Ba6 {[%clk 0:00:46.2]} 23. exd5 {[%clk 0:00:17.4]} 23... Nd6
{[%clk 0:00:21.9]} 24. Qe3 {[%clk 0:00:08.8]} 24... e4 {[%clk 0:00:21.5]} 25.
fxe4 {[%clk 0:00:08.2]} 25... Ng4+ {[%clk 0:00:21.2]} 26. Kf3 {[%clk 0:00:07]}
26... Nxe3 {[%clk 0:00:21]} 27. Kxe3 {[%clk 0:00:07.9]} 27... Re8 {[%clk
0:00:18.5]} 28. e5 {[%clk 0:00:07.6]} 28... Nf5+ {[%clk 0:00:18.4]} 29. Kf4
{[%clk 0:00:06.6]} 29... Bxe2 {[%clk 0:00:16.6]} 30. Nxe2 {[%clk 0:00:06.4]}
30... Re1 {[%clk 0:00:17.3]} 31. Bf3 {[%clk 0:00:05.3]} 31... f6 {[%clk
0:00:13.9]} 32. d6 {[%clk 0:00:03.7]} 32... Rxe2 {[%clk 0:00:12.5]} 33. Bxe2
{[%clk 0:00:02.5]} 33... Nxd4 {[%clk 0:00:13.1]} 34. d7 {[%clk 0:00:01.7]} 34...
Rxe5 {[%clk 0:00:09.8]} 0-1